Cogmind - Beta 11.1 @@@ ROGUE MODE // 2022.05.08 @ 23:22:57 Player: Zeldest Result: Self-destructed Performance ------------- Evolutions (1) 500 Regions Visited (3) 600 Robots Destroyed (4) 20 Value Destroyed (88) 88 Prototype IDs (1) 20 Alien Tech Used (0) 0 Bonus (7) 7 TOTAL SCORE: 1235 Bonus ------- Follower Combat Kills 7 Cogmind --------- Core Integrity 389/400 Matter 240/300 Energy 265/265 System Corruption 0% Temperature Cool (0) Movement Walking (260) Ox2 Location -9/Materials Parts ------- > --- POWER (1) -------- Reinforced Ion Engine > --- PROPULSION (2) --- Aluminum Leg Aluminum Leg > --- UTILITY (4) ------ High-capacity Storage Unit Weight Redist. System Experimental Sensor Array Hardened Light Armor Plating > --- WEAPON (2) ------- (None) > --- INVENTORY (20) --- Ion Engine Light Nuclear Core Compact Wheel Medium Storage Unit Hardened Light Armor Plating Peak State ------------ > --- POWER ------------ Reinforced Ion Engine > --- PROPULSION ------- Aluminum Leg Compact Wheel > --- UTILITY ---------- High-capacity Storage Unit Weight Redist. System Experimental Sensor Array Hardened Light Armor Plating > --- WEAPON ----------- (None) > --- INVENTORY -------- Ion Engine Light Nuclear Core Aluminum Leg Medium Storage Unit Hardened Light Armor Plating [Rating: 18] Favorites ----------- Power Reinforced Ion Engine Engine Reinforced Ion Engine Propulsion Compact Wheel Leg Aluminum Leg Wheel Compact Wheel Utility Medium Storage Unit Device Experimental Sensor Array Storage Medium Storage Unit Protection Hardened Light Armor Plating Weapon EM Pulse Gun Energy Gun EM Pulse Gun Build | -11 -10 -10 -9 ------- Run | Scr Mat Min Mat Slots Evolved 2 | . . . 2 Power . | . . . . Propulsion . | . . . . Utility 2 | . . . 2 Weapon . | . . . . Parts Attached 14 | 5 2 1 6 Power 3 | 1 1 . 1 Engine 3 | 1 1 . 1 Core . | . . . . Reactor . | . . . . Propulsion 4 | 2 . . 2 Treads . | . . . . Leg 2 | . . . 2 Wheel 2 | 2 . . . Hover . | . . . . Flight . | . . . . Utility 6 | 1 1 1 3 Device 2 | . . 1 1 Storage 3 | 1 1 . 1 Processor . | . . . . Hackware . | . . . . Protection 1 | . . . 1 Artifact . | . . . . Weapon 1 | 1 . . . Energy Gun 1 | 1 . . . Energy Cannon . | . . . . Ballistic Gun . | . . . . Ballistic Cannon . | . . . . Launcher . | . . . . Special Weapon . | . . . . Impact Weapon . | . . . . Slashing Weapon . | . . . . Piercing Weapon . | . . . . Special Melee Weapon . | . . . . Unidentified Prototypes 1 | . . 1 . Parts Lost 2 | . . 2 . Power . | . . . . Propulsion 1 | . . 1 . Utility . | . . . . Weapon 1 | . . 1 . Highest Loss Streak 2 | . . 2 . To Critical Strikes . | . . . . Average Slot Usage (%) 72 | . 71 74 64 Engine 13 | . 14 14 11 Leg 2 | . . . 12 Wheel 22 | . 28 26 5 Device 7 | . . 6 18 Storage 13 | . 14 14 11 Protection 1 | . . . 7 Energy Gun 10 | . 14 12 . Naked Turns . | . . . . Heaviest Build 56 | 12 22 23 56 Greatest Support 32 | 32 32 32 26 Greatest Overweight (x) 3 | . . 1 3 Average Overweight (x) . | . . . 1 Largest Inventory Capacity 20 | 8 10 10 20 Average Capacity 10 | 7 8 10 16 Most Carried 8 | 5 5 6 8 Average Carried 4 | 2 3 4 4 Final Capacity 20 | 8 10 10 20 Final Carried 5 | 3 4 5 5 Class Distribution -------------------- 100% | Mutant Dominant Class ---------------- Mutant | -10/Materials Mutant | -10/Mines Mutant | -9/Materials Resources | -11 -10 -10 -9 ----------- Run | Scr Mat Min Mat Matter Collected 280 | 183 . 97 . Remotely . | . . . . Salvage Created 123 | . . 123 . Parts 8 | . . 8 . Haulers Intercepted . | . . . . Recyclers Shooed . | . . . . Parts Field Recycled . | . . . . Retrieved Matter . | . . . . Parts Self-Destructed . | . . . . Prevented . | . . . . Kills | -11 -10 -10 -9 ------- Run | Scr Mat Min Mat Combat Hostiles Destroyed 4 | . . 4 . Guns 4 | . . 4 . Classes Destroyed 2 | . . 2 . Swarmer 2 | . . 2 . Grunt 2 | . . 2 . Best Kill Streak 2 | . . 2 . Combat Bots Only 2 | . . 2 . Max Kills in Single Turn 1 | . . 1 . Gunslinging . | . . . . Exploded . | . . . . Melee . | . . . . Uniques/NPCs Destroyed . | . . . . Combat | -11 -10 -10 -9 -------- Run | Scr Mat Min Mat Damage Taken 301 | . 87 191 23 Core 93 | . 59 23 11 Absorbed by Shields . | . . . . Core Remaining (%) 83 | 100 . 67 . Volleys Fired 9 | . . 9 . Largest 1 | . . 1 . Hottest 40 | . . 40 . Shots Fired 9 | . . 9 . Gun 9 | . . 9 . Cannon . | . . . . Launcher . | . . . . Special . | . . . . Kinetic . | . . . . Thermal . | . . . . Explosive . | . . . . Electromagnetic 9 | . . 9 . Robot Hit Streak 3 | . . 3 . Robot Miss Streak 1 | . . 1 . Penetration Max . | . . . . Secondary Targets . | . . . . Shots Hit Robots 6 | . . 6 . Core Hits 5 | . . 5 . Critical Kills . | . . . . Critical Parts Destroyed . | . . . . Critical Strikes . | . . . . Melee Attacks . | . . . . Impact . | . . . . Slashing . | . . . . Piercing . | . . . . Sneak Attacks . | . . . . Combat Hostiles . | . . . . Follow-up Attacks . | . . . . Damage Inflicted 86 | . . 86 . Guns 86 | . . 86 . Cannons . | . . . . Explosions . | . . . . Melee . | . . . . Ramming . | . . . . Kinetic . | . . . . Thermal . | . . . . Explosive . | . . . . Electromagnetic 86 | . . 86 . Impact . | . . . . Slashing . | . . . . Piercing . | . . . . Highest Corruption . | . . . . Average Corruption . | . . . . Corruption Purged . | . . . . Corruption Blocked . | . . . . Overload Shots . | . . . . Overflow Damage . | . . . . Projectiles . | . . . . Explosions . | . . . . Melee . | . . . . Knockbacks . | . . . . Impact . | . . . . Kinetic . | . . . . Secondary . | . . . . Self-Inflicted Damage . | . . . . Shots . | . . . . Rammed . | . . . . Targets Rammed . | . . . . Kicked . | . . . . Crushed . | . . . . Highest Temperature 40 | . . 40 . Average Temperature 17 | . . 17 . Received Heat Transfer 18 | . . 6 12 Siege Activations . | . . . . Robots Corrupted . | . . . . Combat Hostiles . | . . . . Parts Fried . | . . . . Impact Corruptions . | . . . . Robots Melted . | . . . . Combat Hostiles . | . . . . Parts Melted . | . . . . Heat Transferred . | . . . . Parts Sabotaged . | . . . . Parts Stolen . | . . . . Parts Stripped . | . . . . Power Chain Reactions . | . . . . Missiles Intercepted . | . . . . Alert | -11 -10 -10 -9 ------- Run | Scr Mat Min Mat Peak Influence 151 | . 19 151 72 Initial 42 | . . 7 42 Average 59 | . 5 81 58 Maximum Alert Level . | . . . . Low Security (%) 100 | 100 100 100 100 Level 1 . | . . . . Level 2 . | . . . . Level 3 . | . . . . Level 4 . | . . . . Level 5 . | . . . . High Security . | . . . . Max Security . | . . . . Squads Dispatched 1 | . . . 1 Investigation . | . . . . Extermination . | . . . . Reinforcement 1 | . . . 1 Assault . | . . . . Garrison . | . . . . Intercept . | . . . . Searches Triggered . | . . . . Construction Impeded . | . . . . Haulers Reinforced . | . . . . Active Scanning Responses . | . . . . Cargo Convoy Interrupts . | . . . . Stealth | -11 -10 -10 -9 --------- Run | Scr Mat Min Mat Distress Signals 1 | . 1 . . Communications Jammed . | . . . . Distress Signals . | . . . . Times Spotted 28 | . 6 20 2 Peak Tracking Total 14 | . 6 14 1 Tactical Retreats 4 | . . 4 . Traps | -11 -10 -10 -9 ------- Run | Scr Mat Min Mat Traps Triggered . | . . . . Indirectly . | . . . . Trap Hack Attempts . | . . . . Triggered . | . . . . Disarmed . | . . . . Reprogrammed . | . . . . Reused . | . . . . Traps Extracted . | . . . . Installed . | . . . . Triggered . | . . . . Machines | -11 -10 -10 -9 ---------- Run | Scr Mat Min Mat Machines Disabled . | . . . . Max in Single Turn . | . . . . Machines Sabotaged . | . . . . Garrisons Compromised . | . . . . Overloaded Fab Kills . | . . . . Hacking | -11 -10 -10 -9 --------- Run | Scr Mat Min Mat Machines Accessed 2 | . 2 . . Terminals 2 | . 2 . . Fabricators . | . . . . Repair Stations . | . . . . Recycling Units . | . . . . Scanalyzers . | . . . . Garrison Access . | . . . . Total Hacks 3 | . 3 . . Successful 1 | . 1 . . Failed 2 | . 2 . . Catastrophic 1 | . 1 . . Database Lockouts . | . . . . Manual . | . . . . Terminals 3 | . 3 . . Fabricators . | . . . . Repair Stations . | . . . . Recycling Units . | . . . . Scanalyzers . | . . . . Garrison Access . | . . . . Terminal Hacks 1 | . 1 . . Locate Traps 1 | . 1 . . Fabricator Hacks . | . . . . Repair Station Hacks . | . . . . Recycling Unit Hacks . | . . . . Scanalyzer . | . . . . Garrison Access Hacks . | . . . . Unauthorized Hacks . | . . . . Terminals . | . . . . Fabricators . | . . . . Repair Stations . | . . . . Recycling Units . | . . . . Scanalyzers . | . . . . Garrison Access . | . . . . Data Cores Recovered . | . . . . Used . | . . . . Hacking Detections . | . . . . Full Trace Events . | . . . . Feedback Events . | . . . . Feedback Blocked . | . . . . Robot Schematics Acquired . | . . . . Robots Built . | . . . . Authchips . | . . . . Time . | . . . . Total Robot Build Rating . | . . . . Part Schematics Acquired . | . . . . Parts Built . | . . . . Authchips . | . . . . Time . | . . . . Total Part Build Rating . | . . . . Parts Repaired . | . . . . Time . | . . . . Parts Recycled . | . . . . Recycled Matter . | . . . . Retrieved Matter . | . . . . Retrieved Components . | . . . . Parts Scanalyzed . | . . . . Part Schematics Acquired . | . . . . Parts Damaged . | . . . . Bothacking | -11 -10 -10 -9 ------------ Run | Scr Mat Min Mat Used RIF Installer . | . . . . Robots Hacked . | . . . . Non-combat . | . . . . Combat . | . . . . Robot Hacks Applied . | . . . . Relay Couplers Released . | . . . . Fabnet Peak Effective % . | . . . . Robots Rewired . | . . . . Allies Hacked . | . . . . Hacks Repelled . | . . . . Allies | -11 -10 -10 -9 -------- Run | Scr Mat Min Mat Total Allies 1 | . . 1 . Largest Group 1 | . . 1 . Highest-Rated Group 31 | . . 31 . Highest-Rated Ally 31 | . . 31 . Total Orders . | . . . . Ally Attacks 4 | . . 4 . Total Damage 42 | . . 42 . Kills 2 | . . 2 . Allies Corrupted . | . . . . Allies Melted . | . . . . Intel | -11 -10 -10 -9 ------- Run | Scr Mat Min Mat Robot Analysis Total . | . . . . Derelict Logs Recovered 1 | . . 1 . Drone Launches . | . . . . Drone Recoveries . | . . . . Exploration | -11 -10 -10 -9 ------------- Run | Scr Mat Min Mat Turns Passed 621 | 46 97 366 112 Spaces Moved 484 | 42 88 297 57 Core 18 | 18 . . . Treads . | . . . . Legs 21 | . . . 21 Wheels 445 | 24 88 297 36 Hover . | . . . . Flight . | . . . . Fastest Speed 50 | 50 100 100 115 Average Speed 107 | 78 100 101 172 Slowest Speed 260 | 100 100 115 260 Overloaded Moves . | . . . . Propulsion Burnouts . | . . . . Robots Hopped . | . . . . Cave-ins Triggered . | . . . . Exploration Rate (%) 23 | 3 27 53 9 Regions Visited 3 Branch Regions 1 Pre-discovered Areas 2 | . . 2 . Known Exits Taken . | . . . . Unknown Exits Taken 3 | 1 1 1 . Scrap Searched . | . . . . Spaces Dug . | . . . . Terrain Destroyed . | . . . . Melee . | . . . . Projectile . | . . . . AOE . | . . . . Terrain Rammed . | . . . . Walls Destroyed . | . . . . Machines Disabled . | . . . . Actions | -11 -10 -10 -9 --------- Run | Scr Mat Min Mat Total 575 | 54 97 353 71 Wait 48 | . 2 45 1 Move 481 | 41 87 296 57 Hop . | . . . . Pick Up 17 | 8 3 2 4 Fast Attach . | . . . . Attach 12 | 5 1 1 5 Detach 3 | . 1 . 2 Swap 2 | . 1 . 1 Drop 3 | . 2 . 1 Fire 9 | . . 9 . Melee . | . . . . Ram . | . . . . Kick . | . . . . Crush . | . . . . Escape Stasis . | . . . . Rewire . | . . . . Trap . | . . . . Miscellaneous . | . . . . Route ------- -11/Scrapyard -10/Materials -10/Mines -9/Materials History --------- Turn | Location | Event 13 | -11/Scrapyard | Discovered new exit (range 15) 47 | -11/Scrapyard | Entered Materials 129 | -10/Materials | Discovered new exit (range 16) 144 | -10/Materials | Entered Mines 149 | -10/Mines | Escorted by a lone wolf Derelict 169 | -10/Mines | Learned location of Storage (-7) 270 | -10/Mines | Discovered new exit (range 6) 309 | -10/Mines | Build established: Mutant 335 | -10/Mines | Found a damaged Exp. Sensor Array with a note attached 341 | -10/Mines | Found Prototype Device 342 | -10/Mines | Identified Exp. Sensor Array 465 | -10/Mines | Assembled infested the area 510 | -10/Mines | Entered Materials 510 | -9/Materials | Evolved 2 slots: Utility x2 622 | -9/Materials | Self-destructed Last Messages --------------- M001. 00533_ O-16 Technician locks terminal. 00534_ T-07 Excavator is excavating. 00543_ Acquired Hcp. Storage Unit. 00546_ T-07 Excavator is excavating. 00549_ Acquired Hrd. Light Armor Plating. 00550_ T-07 Excavator is excavating. 00551_ Acquired Hrd. Light Armor Plating. 00554_ Acquired Weight Redist. System. 00554_ T-07 Excavator is excavating. 00568_ U-05 Engineer lays Concrete. 00568_ T-07 Excavator is excavating. 00569_ U-05 Engineer lays Concrete. 00572_ T-07 Excavator is excavating. 00573_ U-05 Engineer lays Concrete. 00574_ U-05 Engineer builds a Wall. 00578_ U-05 Engineer lays Concrete. 00582_ U-05 Engineer builds a Wall. 00587_ U-05 Engineer lays Concrete. 00622_ Connecting with Terminal... Map ----- +----------------------------------------------------+ | ???????????????? ? ????????????????????????? | | ??????????????? ?????????????????????? | | ??????????????? ??????????????????????? | | ??????????????# ??????????????????????? | | ??????????????# ""??????????????????????? | | ???#######????# """ "??????????????????? | | ???# #????# """ ???????????????????? | | ???# #????# ? ??????????????????? | | ???#### ####### ? ?????????????????? | | ?????# """ """ ""?????????????????? | | ?????# "T" """ ""?????????????????? | | ?????# """ """ ??????????????? | | ?????# ???????????????? | | ?????# !!! ????????????????? | | ?????# ! """ """????????????????? | | ?????# ! """ """????????????????? | | ?????# """ """ ""????????????? | | ?????# ??????????? | | ?????# ??????????? | | ?????# ##########+######+###??????????????? | | ?????# #?????# #???????????????????? | | ###### #?????# """g #???????????????????? | | # # #?????# """ #???????????????????? | | #" # #?????# """ #???????????????????? | | #" # #?????# #???????????????????? | | #" # #?????# @"" #???????????????????? | | #T + #?????# T" #???????????????????? | | #" # #?????# "" #???????????????????? | | #" # * #?????# #???????????????????? | | #" # #?????##########???????????????????? | | # #####??????????????????????????????????? | | ######??????????????????????????????????????? | | ????????????????????????????????????????????? | | ????????????????????????????????????????????? | | ????????????????????????????????????????????? | | ????????????????????????????????????????????? | | ????????????????????????????????????????????? | | ????????????????????????????????????????????? | | ????????????????????????????????????????????? | | ????????????????????????????????????????????? | | ????????????????????????????????????????????? | | ????????????????????????????????????????????? | | ????????????????????????????????????????????? | | ????????????????????????????????????????????? | | ????????????????????????????????????????????? | | ????????????????????????????????????????????? | | ????????????????????????????????????????????? | | | | | | | +----------------------------------------------------+ Best States ------------- Heat Dissipation 28 Energy Generation 12 Energy Capacity 265 Matter Stores 300 Matter Capacity 300 Sight Range 16 Robot Scan Range 20 Terrain Scan Density 10 Additional Mass Support 6 Armor Coverage 150 Evasion (%) 50 Item Schematics ----------------- None Robot Schematics ------------------ None Fabricated ------------ Nothing Alien Tech Used ----------------- None Achievements -------------- None Challenges ------------ None Game ------ Seed KineticHardlightSystem Manual? 0 Play Time 00:08:10 Cumulative 18.5 hours Start 2022.05.08 @ 23:05:30 End 2022.05.08 @ 23:22:57 Sessions 1 Manual Loads 0 Difficulty Rogue Special Mode None Game No. 42 Rogue 42 Adventurer 0 Explorer 0 Win Type - Total 0 Types 0/0/0/0/0/0/0/0/0 Lore% 19 Gallery% 22 Achievement% 17 Wizard Run 0 Options --------- ASCII 0 Keyboard 1 Movement Numpad Keybinds 0 Fullscreen 1 Font 18/SmallcapsGlow Map View 76x50 Tactical HUD 1 Map Filters NONE Filters NONE Steam 1 RUN: b96694cd-eef9-4f04-a336-8dd4c40bbf5e